[Event "94th Tradewise Hastings Congress"]
[Site "Hastings"]
[Date "2019.01.05"]
[Round "9"]
[White "Song, Jinwoo"]
[Black "Spiegel, Stefan"]
[Result "0-1"]
[ECO "B02"]
[WhiteElo "1907"]
[BlackElo "2124"]
[Annotator "NA"]
[PlyCount "128"]
[EventDate "2018.12.28"]
[EventType "swiss"]
[EventCountry "ENG"]
[SourceTitle "playchess.com"]
[Source "ChessBase"]
[SourceQuality "1"]
[TimeControl "40/6000+30:3000+30"]

1. e4 {[%emt 0:04:35]} Nf6 {[%emt 0:00:00]} 2. Nc3 {[%emt 0:00:35]} d5 {[%emt 0:00:00]} 3. exd5 {[%emt 0:00:42]} Nxd5 {[%emt 0:00:00]} 4. Bc4 {[%emt 0:00:12]} c6 {[%emt 0:00:26]} 5. Nge2 {[%emt 0:00:36]} Bf5 {[%emt 0:00:27]} 6. Ng3 {[%emt 0:01:32]} Bg6 {[%emt 0:00:40]} 7. d3 {[%emt 0:00:51]} e6 {[%emt 0:01:27]} 8. O-O {[%emt 0:00:18]} Be7 {[%emt 0:01:16]} 9. Kh1 {[%emt 0:07:24]} O-O {[%emt 0:04:47]} 10. Bd2 {[%emt 0:07:18]} Nd7 {[%emt 0:03:18]} 11. Bb3 {[%emt 0:01:35]} Nc5 {[%emt 0:03:51]} 12. Nxd5 {[%emt 0:00:28]} cxd5 {[%emt 0:00:08]} 13. d4 {[%emt 0:00:54]} Nxb3 {[%emt 0:00:30]} 14. axb3 {[%emt 0:00:07]} Qc7 {[%emt 0:02:04]} 15. c3 {[%emt 0:00:16]} Bd6 {[%emt 0:01:05]} 16. Qe2 {[%emt 0:07:27]} Rfe8 {[%emt 0:03:11]} 17. f4 {[%emt 0:02:22]} f6 {[%emt 0:00:45]} 18. Qf3 {[%emt 0:01:04]} Bf7 {[%emt 0:00:08]} 19. b4 {[%emt 0:00:37]} a5 {[%emt 0:00:48]} 20. bxa5 {[%emt 0:12:29]} Ra7 {[%emt 0:00:09]} 21. a6 Rxa6 {[%emt 0:00:31]} 22. Ra3 {[%emt 0:00:15]} Ra5 23. Rxa5 {[%emt 0:00:59]} Qxa5 {[%emt 0:00:34]} 24. f5 {[%emt 0:00:16]} e5 {[%emt 0:00:14]} 25. dxe5 {[%emt 0:02:14]} Bxe5 {[%emt 0:00:33]} 26. Qg4 {[%emt 0:02:07]} Qb5 {[%emt 0:03:00]} 27. Bh6 {[%emt 0:09:31]} g6 {[%emt 0:00:09]} 28. fxg6 {[%emt 0:00:18]} hxg6 {[%emt 0:00:10]} 29. Re1 {[%emt 0:15:37]} Qc4 {[%emt 0:00:08]} 30. Qf3 {[%emt 0:07:29]} Qh4 {[%emt 0:00:09]} 31. Bd2 {[%emt 0:02:52]} Kg7 {[%emt 0:00:05]} 32. Nf1 {[%emt 0:07:44]} Ra8 {[%emt 0:04:43]} 33. g3 {[%emt 0:03:09]} Qh5 {[%emt 0:01:16]} 34. Qxh5 {[%emt 0:01:30]} gxh5 {[%emt 0:00:03]} 35. Ne3 {[%emt 0:04:29]} Ra2 {[%emt 0:00:09]} 36. Bc1 {[%emt 0:00:22]} b5 {[%emt 0:02:01]} 37. Nf5+ {[%emt 0:00:35]} Kh7 {[%emt 0:00:07]} 38. Nd4 {[%emt 0:01:15]} b4 {[%emt 0:03:48]} 39. Nc6 {[%emt 0:00:35]} bxc3 {[%emt 0:00:04]} 40. Nxe5 {[%emt 0:00:21]} fxe5 {[%emt 0:00:02]} 41. bxc3 {[%emt 0:50:17]} Bg6 {[%emt 0:50:07]} 42. Bg5 {[%emt 0:02:37]} Be4+ {[%emt 0:00:32]} 43. Kg1 {[%emt 0:00:08]} Kg6 {[%emt 0:00:38]} 44. h4 {[%emt 0:01:37]} Rg2+ {[%emt 0:00:34]} 45. Kf1 {[%emt 0:00:19]} Rc2 {[%emt 0:00:05]} 46. Re3 {[%emt 0:01:23]} Kf5 {[%emt 0:01:30]} 47. Be7 {[%emt 0:02:35]} Bg2+ {[%emt 0:00:26]} 48. Ke1 {[%emt 0:00:28]} Ra2 {[%emt 0:01:12]} 49. Bd6 {[%emt 0:00:50]} e4 {[%emt 0:00:06]} 50. Bf4 {[%emt 0:00:00]} Bf3 {[%emt 0:00:00]} 51. Kf1 {[%emt 0:00:00]} Rc2 {[%emt 0:00:00]} 52. Bd6 {[%emt 0:00:00]} Kg4 {[%emt 0:00:00]} 53. Be5 {[%emt 0:00:00]} Rg2 {[%emt 0:00:00]} 54. Bd6 {[%emt 0:00:00]} Rxg3 {[%emt 0:00:00]} 55. Bxg3 {[%emt 0:00:00]} Kxg3 {[%emt 0:00:00]} 56. Kg1 {[%emt 0:00:00]} Kxh4 {[%emt 0:00:00]} 57. Kh2 {[%emt 0:00:00]} Kg4 {[%emt 0:00:00]} 58. Re1 {[%emt 0:00:00]} Kf4 {[%emt 0:00:00]} 59. Ra1 {[%emt 0:00:00]} e3 {[%emt 0:00:00]} 60. Kg1 {[%emt 0:00:00]} Ke4 {[%emt 0:00:00]} 61. Ra8 {[%emt 0:00:00]} Kd3 {[%emt 0:00:00]} 62. Re8 {[%emt 0:00:00]} Bg4 {[%emt 0:00:00]} 63. Re5 {[%emt 0:00:00]} Bf3 {[%emt 0:00:00]} 64. Rf5 {[%emt 0:00:00]} Be4 {[%emt 0:00:00]} 0-1

[Event "94th Tradewise Hastings Congress"]
[Site "Hastings"]
[Date "2019.01.05"]
[Round "9"]
[White "Chapman, Matt"]
[Black "Villiers, Thomas"]
[Result "1/2-1/2"]
[ECO "B04"]
[WhiteElo "1902"]
[BlackElo "2205"]
[Annotator "NA"]
[PlyCount "134"]
[EventDate "2018.12.28"]
[EventType "swiss"]
[EventCountry "ENG"]
[SourceTitle "playchess.com"]
[Source "ChessBase"]
[SourceQuality "1"]
[TimeControl "40/6000+30:3000+30"]

1. e4 {[%emt 0:00:00]} Nf6 {[%emt 0:00:00]} 2. e5 {[%emt 0:00:00]} Nd5 {[%emt 0:00:00]} 3. d4 {[%emt 0:00:00]} d6 {[%emt 0:00:00]} 4. Nf3 {[%emt 0:00:00]} dxe5 {[%emt 0:00:00]} 5. Nxe5 {[%emt 0:00:06]} c6 {[%emt 0:00:00]} 6. Nf3 {[%emt 0:00:34]} Bg4 {[%emt 0:00:19]} 7. h3 {[%emt 0:01:43]} Bh5 {[%emt 0:03:13]} 8. c4 {[%emt 0:01:39]} Nb6 {[%emt 0:01:37]} 9. Be3 {[%emt 0:17:10]} e6 {[%emt 0:00:50]} 10. Nc3 {[%emt 0:00:41]} Be7 {[%emt 0:01:22]} 11. g4 {[%emt 0:04:02]} Bg6 {[%emt 0:00:05]} 12. Ne5 {[%emt 0:00:11]} N8d7 {[%emt 0:00:35]} 13. Nxg6 {[%emt 0:00:21]} hxg6 {[%emt 0:00:05]} 14. Qe2 {[%emt 0:01:19]} Qc7 {[%emt 0:05:00]} 15. Bg2 {[%emt 0:01:54]} Nf6 {[%emt 0:01:05]} 16. O-O-O {[%emt 0:01:55]} O-O-O {[%emt 0:00:23]} 17. Kb1 {[%emt 0:04:15]} Kb8 {[%emt 0:01:11]} 18. d5 {[%emt 0:20:49]} cxd5 {[%emt 0:01:47]} 19. Bxb6 {[%emt 0:00:38]} Qxb6 {[%emt 0:02:09]} 20. cxd5 {[%emt 0:00:38]} Bb4 {[%emt 0:00:17]} 21. Qe5+ {[%emt 0:10:15]} Bd6 {[%emt 0:03:57]} 22. Qe3 {[%emt 0:03:11]} Qxe3 {[%emt 0:00:34]} 23. fxe3 {[%emt 0:00:05]} exd5 {[%emt 0:00:13]} 24. Nxd5 {[%emt 0:01:00]} Be5 {[%emt 0:00:15]} 25. Nxf6 {[%emt 0:01:13]} Bxf6 {[%emt 0:00:11]} 26. Bd5 {[%emt 0:00:40]} Rd7 {[%emt 0:00:20]} 27. e4 {[%emt 0:00:31]} g5 {[%emt 0:00:42]} 28. Rdf1 {[%emt 0:01:31]} Rc8 {[%emt 0:02:40]} 29. Rc1 {[%emt 0:03:56]} Re8 {[%emt 0:00:30]} 30. Rhf1 {[%emt 0:01:54]} Rd6 {[%emt 0:08:14]} 31. Rf3 {[%emt 0:05:43]} Rb6 {[%emt 0:00:49]} 32. b3 {[%emt 0:03:33]} Re7 {[%emt 0:01:55]} 33. Rc2 {[%emt 0:01:33]} Rd6 {[%emt 0:03:23]} 34. a4 {[%emt 0:03:33]} Be5 {[%emt 0:01:07]} 35. Rxf7 {[%emt 0:10:49]} Rxf7 {[%emt 0:00:08]} 36. Bxf7 {[%emt 0:00:08]} b6 {[%emt 0:05:27]} 37. Bc4 {[%emt 0:03:16]} Kc7 {[%emt 0:00:39]} 38. Rf2 {[%emt 0:01:20]} Bf4 {[%emt 0:04:24]} 39. Bd5 {[%emt 0:00:57]} Rh6 {[%emt 0:00:21]} 40. Rf3 {[%emt 0:00:54]} Kd6 {[%emt 0:00:14]} 41. Kc2 {[%emt 0:51:22]} Ke5 {[%emt 0:50:09]} 42. Rc3 {[%emt 0:01:45]} Rh8 {[%emt 0:01:31]} 43. Rf3 {[%emt 0:01:50]} a5 {[%emt 0:02:21]} 44. Rd3 {[%emt 0:01:54]} Bh2 {[%emt 0:00:24]} 45. Rf3 {[%emt 0:00:00]} Rc8+ {[%emt 0:00:00]} 46. Kd3 {[%emt 0:00:00]} Bf4 {[%emt 0:00:00]} 47. Rf1 {[%emt 0:00:00]} Kd6 {[%emt 0:00:00]} 48. h4 {[%emt 0:00:00]} Be5 {[%emt 0:00:00]} 49. hxg5 {[%emt 0:00:00]} Rc3+ {[%emt 0:00:00]} 50. Ke2 {[%emt 0:00:00]} Rg3 {[%emt 0:00:00]} 51. g6 {[%emt 0:00:00]} Rxg4 {[%emt 0:00:00]} 52. Bf7 {[%emt 0:00:00]} Rxe4+ {[%emt 0:00:00]} 53. Kd3 {[%emt 0:00:00]} Rd4+ {[%emt 0:00:00]} 54. Kc2 {[%emt 0:00:00]} Rg4 {[%emt 0:00:00]} 55. Rd1+ {[%emt 0:00:00]} Kc6 {[%emt 0:00:00]} 56. Rd2 {[%emt 0:00:00]} Rg3 {[%emt 0:00:00]} 57. Rd3 {[%emt 0:00:00]} Rg5 {[%emt 0:00:00]} 58. Rd2 {[%emt 0:00:00]} Bd6 {[%emt 0:00:00]} 59. Re2 {[%emt 0:00:00]} Bb4 {[%emt 0:00:00]} 60. Kd3 {[%emt 0:00:00]} Kc5 {[%emt 0:00:00]} 61. Rc2+ {[%emt 0:00:00]} Kd6 {[%emt 0:00:00]} 62. Re2 {[%emt 0:00:00]} b5 {[%emt 0:00:00]} 63. axb5 {[%emt 0:00:00]} Rxb5 {[%emt 0:00:00]} 64. Re6+ {[%emt 0:00:00]} Kc7 {[%emt 0:00:00]} 65. Re2 {[%emt 0:00:00]} Rg5 {[%emt 0:00:00]} 66. Rc2+ {[%emt 0:00:00]} Kd6 {[%emt 0:00:00]} 67. Re2 {[%emt 0:00:00]} Re5 {[%emt 0:00:00] Ke4 [%emt 00:00:17]} 1/2-1/2

[Event "94th Tradewise Hastings Congress"]
[Site "Hastings"]
[Date "2019.01.06"]
[Round "10"]
[White "Petrov, Vladimir Sergeev"]
[Black "Stoyanov, Viktor"]
[Result "1-0"]
[ECO "B40"]
[WhiteElo "2365"]
[BlackElo "2205"]
[Annotator "NA"]
[PlyCount "71"]
[EventDate "2018.12.28"]
[EventType "swiss"]
[EventCountry "ENG"]
[SourceTitle "playchess.com"]
[Source "ChessBase"]
[SourceQuality "1"]
[TimeControl "40/6000+30:3000+30"]

1. e4 {[%emt 0:00:00]} c5 {[%emt 0:00:00]} 2. Nf3 {[%emt 0:00:48]} e6 {[%emt 0:00:00]} 3. d4 {[%emt 0:00:17]} cxd4 {[%emt 0:00:00]} 4. Nxd4 {[%emt 0:00:04]} Nf6 {[%emt 0:00:00]} 5. Nc3 {[%emt 0:02:00]} Nc6 {[%emt 0:00:00]} 6. Ndb5 {[%emt 0:01:10]} Bc5 {[%emt 0:00:06]} 7. Nd6+ {[%emt 0:03:15]} Ke7 {[%emt 0:00:04]} 8. Bf4 {[%emt 0:01:04]} e5 {[%emt 0:00:09]} 9. Nf5+ {[%emt 0:01:15]} Kf8 {[%emt 0:00:04]} 10. Bg5 {[%emt 0:06:03]} d6 {[%emt 0:01:21]} 11. Bc4 {[%emt 0:05:46] LiveBook: 4 Games} Be6 {[%emt 0:06:29]} 12. Bd5 $11 {[%emt 0:04:01]} h6 {[%emt 0:04:59]} 13. Be3 {[%emt 0:15:43]} Bb4 {[%emt 0:11:03]} 14. O-O {[%emt 0:13:58]} Bxc3 {[%emt 0:08:06]} 15. bxc3 {[%emt 0:00:27]} Bxd5 {[%emt 0:00:43]} 16. exd5 {[%emt 0:00:53]} Ne7 {[%emt 0:02:18]} 17. Nxe7 {[%emt 0:01:23]} Qxe7 {[%emt 0:00:06]} 18. f4 {[%emt 0:00:26]} e4 {[%emt 0:09:43]} 19. c4 {[%emt 0:04:21]} b6 {[%emt 0:04:25]} 20. a4 {[%emt 0:03:01]} Rc8 {[%emt 0:04:02]} 21. a5 {[%emt 0:00:15]} Qc7 {[%emt 0:02:28]} 22. axb6 {[%emt 0:02:22]} axb6 {[%emt 0:00:16]} 23. Ra4 {[%emt 0:02:49]} Nd7 {[%emt 0:03:49]} 24. Qg4 {[%emt 0:02:20]} Nf6 {[%emt 0:05:52]} 25. Qe2 {[%emt 0:00:21]} Kg8 {[%emt 0:08:42]} 26. Bd4 {[%emt 0:07:08]} Nd7 {[%emt 0:07:19]} 27. Qg4 {[%emt 0:08:42]} f6 {[%emt 0:00:17]} 28. Rfa1 {[%emt 0:01:53]} Rh7 {[%emt 0:06:14]} 29. Qe6+ {[%emt 0:06:43]} Kh8 {[%emt 0:00:14]} 30. Ra8 {[%emt 0:00:34]} Nb8 {[%emt 0:01:40]} 31. c5 {[%emt 0:04:55]} Rf8 {[%emt 0:02:33]} 32. R1a7 {[%emt 0:01:56]} Qd8 {[%emt 0:01:15]} 33. c6 {[%emt 0:00:27]} g6 {[%emt 0:00:23]} 34. Rxh7+ {[%emt 0:00:44]} Kxh7 {[%emt 0:00:04]} 35. Ra7+ {[%emt 0:00:10]} Kh8 {[%emt 0:00:06]} 36. c7 {[%emt 0:00:07]} 1-0

[Event "94th Tradewise Hastings Congress"]
[Site "Hastings"]
[Date "2019.01.06"]
[Round "10"]
[White "Lyell, Mark"]
[Black "Djuric, Stefan"]
[Result "1/2-1/2"]
[ECO "B27"]
[WhiteElo "2317"]
[BlackElo "2371"]
[Annotator "NA"]
[PlyCount "84"]
[EventDate "2018.12.28"]
[EventType "swiss"]
[EventCountry "ENG"]
[SourceTitle "playchess.com"]
[Source "ChessBase"]
[SourceQuality "1"]
[TimeControl "40/6000+30:3000+30"]

1. e4 {[%emt 0:00:00]} c5 {[%emt 0:00:00]} 2. Nf3 {[%emt 0:00:00]} g6 {[%emt 0:00:00]} 3. d4 {[%emt 0:00:01]} cxd4 {[%emt 0:00:00]} 4. Qxd4 {[%emt 0:00:08]} Nf6 {[%emt 0:00:00]} 5. Nc3 {[%emt 0:00:25]} Nc6 {[%emt 0:00:27]} 6. Qa4 {[%emt 0:00:14]} d6 {[%emt 0:02:35]} 7. e5 {[%emt 0:00:21]} dxe5 {[%emt 0:08:16]} 8. Nxe5 {[%emt 0:00:10]} Bd7 {[%emt 0:00:10]} 9. Nxd7 {[%emt 0:00:12]} Qxd7 {[%emt 0:00:04]} 10. Be3 {[%emt 0:00:38]} Bg7 {[%emt 0:05:32]} 11. Rd1 {[%emt 0:00:53]} Qc8 {[%emt 0:02:50]} 12. Be2 {[%emt 0:00:47]} O-O {[%emt 0:08:00]} 13. O-O {[%emt 0:01:53] LiveBook: 37 Games} a6 $11 {[%emt 0:13:29]} 14. h3 {[%emt 0:10:01]} b5 {[%emt 0:03:34]} 15. Qb3 {[%emt 0:04:43]} Rb8 {[%emt 0:25:20]} 16. a3 {[%emt 0:42:36]} Re8 {[%emt 0:07:07]} 17. Rfe1 {[%emt 0:07:22]} Qc7 {[%emt 0:07:38]} 18. g3 {[%emt 0:04:48]} Na5 {[%emt 0:05:22]} 19. Qa2 {[%emt 0:00:14]} Rbc8 {[%emt 0:01:09]} 20. Rd2 {[%emt 0:04:58]} Qb7 {[%emt 0:05:48]} 21. Red1 {[%emt 0:04:23]} Nc4 {[%emt 0:04:11]} 22. Bxc4 {[%emt 0:01:03]} bxc4 {[%emt 0:00:01]} 23. Rd4 {[%emt 0:12:11]} Qc6 {[%emt 0:00:04]} 24. Nd5 {[%emt 0:04:19]} h5 {[%emt 0:00:06]} 25. c3 {[%emt 0:00:42]} h4 {[%emt 0:00:50]} 26. g4 {[%emt 0:01:24]} Nxd5 {[%emt 0:01:22]} 27. Rxd5 {[%emt 0:00:04]} e6 {[%emt 0:00:03]} 28. Rd7 {[%emt 0:03:19]} Qf3 {[%emt 0:01:15]} 29. Qb1 {[%emt 0:00:20]} Be5 {[%emt 0:01:31]} 30. Bd4 {[%emt 0:04:04]} Bf4 {[%emt 0:01:22]} 31. Re1 {[%emt 0:02:29]} Qxh3 {[%emt 0:01:33]} 32. Qd1 {[%emt 0:00:03]} Bh2+ {[%emt 0:01:51]} 33. Kh1 {[%emt 0:00:01]} Bb8+ {[%emt 0:00:26]} 34. Kg1 {[%emt 0:00:01]} Qh2+ {[%emt 0:00:45]} 35. Kf1 {[%emt 0:00:02]} Qh1+ {[%emt 0:00:12]} 36. Ke2 {[%emt 0:00:01]} Qc6 {[%emt 0:00:02]} 37. Bf6 {[%emt 0:01:09]} e5 {[%emt 0:02:29]} 38. g5 {[%emt 0:00:26]} Qe4+ {[%emt 0:00:18]} 39. Kf1 {[%emt 0:00:55]} Qh1+ {[%emt 0:00:20]} 40. Ke2 {[%emt 0:00:02]} Qe4+ {[%emt 0:00:17]} 41. Kf1 {[%emt 0:50:16]} Qh1+ {[%emt 0:50:47]} 42. Ke2 {[%emt 0:00:18]} Qe4+ {[%emt 0:00:23]} 1/2-1/2

[Event "94th Tradewise Hastings Congress"]
[Site "Hastings"]
[Date "2019.01.06"]
[Round "10"]
[White "Pitschka, Claus"]
[Black "Ruane, Brendan J"]
[Result "1-0"]
[ECO "D31"]
[WhiteElo "2241"]
[BlackElo "1870"]
[Annotator "NA"]
[PlyCount "103"]
[EventDate "2018.12.28"]
[EventType "swiss"]
[EventCountry "ENG"]
[SourceTitle "playchess.com"]
[Source "ChessBase"]
[SourceQuality "1"]
[TimeControl "40/6000+30:3000+30"]

1. d4 {[%emt 0:00:30]} d5 {[%emt 0:00:00]} 2. c4 {[%emt 0:00:10]} e6 {[%emt 0:00:00]} 3. Nc3 {[%emt 0:00:45]} a6 {[%emt 0:00:00]} 4. cxd5 {[%emt 0:00:58]} exd5 {[%emt 0:00:07]} 5. Bf4 {[%emt 0:00:13]} Nf6 {[%emt 0:00:17]} 6. e3 {[%emt 0:00:50]} Bd6 {[%emt 0:00:41]} 7. Bg5 {[%emt 0:01:52]} Be6 {[%emt 0:05:58] LiveBook: 19 Games} 8. Bd3 {[%emt 0:02:22]} h6 {[%emt 0:11:32]} 9. Bh4 {[%emt 0:02:24]} g5 {[%emt 0:00:10]} 10. Bg3 {[%emt 0:00:16]} h5 {[%emt 0:00:17]} 11. Bxd6 {[%emt 0:05:46]} Qxd6 {[%emt 0:00:14]} 12. h4 {[%emt 0:00:11]} g4 {[%emt 0:02:26]} 13. Nge2 {[%emt 0:01:38]} Nbd7 {[%emt 0:03:28]} 14. Qb3 {[%emt 0:02:27]} b5 {[%emt 0:09:12]} 15. Qd1 {[%emt 0:09:11]} Nb6 $16 {[%emt 0:03:21]} (15... c5 $142) 16. Nf4 {[%emt 0:14:41]} g3 {[%emt 0:02:38]} 17. fxg3 {[%emt 0:07:59]} Nc4 {[%emt 0:12:44]} 18. Bxc4 {[%emt 0:03:06]} bxc4 {[%emt 0:00:31]} 19. Qa4+ {[%emt 0:02:41]} Bd7 {[%emt 0:02:25]} 20. Qc2 {[%emt 0:04:08]} Rg8 {[%emt 0:09:49]} 21. O-O-O {[%emt 0:12:20]} Rxg3 {[%emt 0:02:38]} 22. Rde1 {[%emt 0:00:09]} O-O-O {[%emt 0:00:53]} 23. Rhf1 {[%emt 0:01:01]} Ng4 {[%emt 0:11:04]} 24. Ncxd5 {[%emt 0:13:02]} Be6 {[%emt 0:00:56]} 25. e4 {[%emt 0:00:20]} Bxd5 {[%emt 0:01:25]} 26. Nxd5 {[%emt 0:00:10]} c3 {[%emt 0:05:16]} 27. Rxf7 {[%emt 0:01:57]} cxb2+ {[%emt 0:01:21]} 28. Kb1 {[%emt 0:01:05]} Rd7 {[%emt 0:00:47]} 29. Ref1 {[%emt 0:02:45]} Kb7 {[%emt 0:03:10]} 30. Qxb2+ {[%emt 0:01:28]} Ka7 {[%emt 0:00:56]} 31. Ka1 {[%emt 0:01:59]} Ne3 {[%emt 0:02:14]} 32. Rxd7 {[%emt 0:05:34]} Qxd7 {[%emt 0:00:02]} 33. Rb1 {[%emt 0:00:25]} Qb5 {[%emt 0:00:36]} 34. Qxb5 {[%emt 0:00:16]} axb5 {[%emt 0:00:27]} 35. Nxe3 {[%emt 0:00:37]} Rxe3 {[%emt 0:00:03]} 36. Rxb5 {[%emt 0:00:18]} Rxe4 {[%emt 0:00:29]} 37. Rxh5 {[%emt 0:04:46]} Rxd4 {[%emt 0:00:44]} 38. g3 {[%emt 0:00:07]} Rd2 {[%emt 0:00:21]} 39. g4 {[%emt 0:03:21]} Kb6 {[%emt 0:00:14]} 40. a4 {[%emt 0:01:47]} c5 {[%emt 0:02:17]} 41. Kb1 {[%emt 0:52:21]} Rg2 {[%emt 0:52:25]} 42. Rg5 {[%emt 0:00:55]} Ka5 {[%emt 0:03:11]} 43. Rxc5+ {[%emt 0:01:10]} Kb4 {[%emt 0:00:20]} 44. Rg5 {[%emt 0:00:50]} Kxa4 {[%emt 0:00:13]} 45. Kc1 {[%emt 0:00:16]} Kb3 {[%emt 0:00:23]} 46. Kd1 {[%emt 0:00:06]} Kc3 {[%emt 0:00:19]} 47. Ke1 {[%emt 0:00:53]} Kd3 {[%emt 0:01:24]} 48. Kf1 {[%emt 0:00:07]} Rh2 {[%emt 0:00:38]} 49. h5 {[%emt 0:00:09]} Ke3 {[%emt 0:00:28]} 50. Kg1 {[%emt 0:00:55]} Rc2 {[%emt 0:00:48]} 51. Rf5 {[%emt 0:00:00]} Ke4 {[%emt 0:00:00]} 52. h6 {[%emt 0:00:00]} 1-0

[Event "94th Tradewise Hastings Congress"]
[Site "Hastings"]
[Date "2019.01.06"]
[Round "10"]
[White "Villiers, Thomas"]
[Black "Nettleton, Charlie B"]
[Result "1-0"]
[ECO "A12"]
[WhiteElo "2205"]
[BlackElo "2059"]
[Annotator "NA"]
[PlyCount "91"]
[EventDate "2018.12.28"]
[EventType "swiss"]
[EventCountry "ENG"]
[SourceTitle "playchess.com"]
[Source "ChessBase"]
[SourceQuality "1"]
[TimeControl "40/6000+30:3000+30"]

1. Nf3 {[%emt 0:00:00]} d5 {[%emt 0:00:00]} 2. c4 {[%emt 0:00:00]} c6 {[%emt 0:00:00]} 3. b3 {[%emt 0:00:10]} Nf6 {[%emt 0:00:28]} 4. Bb2 {[%emt 0:00:07]} Bf5 {[%emt 0:00:31]} 5. e3 {[%emt 0:00:31]} e6 {[%emt 0:00:11]} 6. Be2 {[%emt 0:00:17]} h6 {[%emt 0:01:30]} 7. Nc3 {[%emt 0:00:09] A12: English Opening: 1...c6 with b3 by White} Nbd7 {[%emt 0:03:10]} 8. O-O {[%emt 0:00:10]} Bd6 {[%emt 0:04:05]} (8... Be7 9. d4 O-O 10. a3 a5 11. c5 Ne4 12. b4 b5 13. Nd2 Nxd2 14. Qxd2 Qc7 15. f4 Nf6 16. Bf3 axb4 17. axb4 Rxa1 18. Rxa1 {½-½ (31) Vachier Lagrave,M (2780)-Dreev,A (2649) chess.com INT 2018}) 9. d4 {[%emt 0:00:08]} Ne4 {[%emt 0:02:54]} 10. Nxe4 {[%emt 0:06:01]} Bxe4 {[%emt 0:03:16] LiveBook: 5 Games} 11. Nd2 {[%emt 0:01:03]} Bf5 $146 {[%emt 0:07:46]} ({Much worse is} 11... Qh4 $6 12. g3 $16) ({Predecessor:} 11... Bg6 12. f3 Qh4 13. f4 O-O 14. c5 Bc7 15. b4 {0-1 (44) Castrogiovanni,C (2108)-Del Dotto,R (2127) Falconara Marittima 2005}) 12. Bf3 {[%emt 0:03:09]} O-O {[%emt 0:16:36]} 13. Re1 {[%emt 0:01:17]} a5 {[%emt 0:14:16]} 14. e4 {[%emt 0:02:11]} dxe4 {[%emt 0:00:37]} 15. Nxe4 {[%emt 0:00:08]} Bb4 {[%emt 0:09:39]} 16. Re3 {[%emt 0:02:57]} Nf6 {[%emt 0:03:35]} 17. Nc5 {[%emt 0:20:13]} Bxc5 {[%emt 0:03:57]} 18. dxc5 {[%emt 0:00:10]} Qxd1+ {[%emt 0:00:06]} 19. Rxd1 {[%emt 0:00:08]} Rfd8 {[%emt 0:00:18]} 20. Ree1 {[%emt 0:01:14]} Ne8 {[%emt 0:11:44]} 21. Bc3 {[%emt 0:06:24]} a4 {[%emt 0:03:38]} 22. b4 {[%emt 0:03:18]} Bc2 {[%emt 0:00:52]} 23. Rxd8 {[%emt 0:02:41]} Rxd8 {[%emt 0:00:03]} 24. Rc1 {[%emt 0:00:04]} Bf5 {[%emt 0:01:38]} 25. b5 {[%emt 0:00:15]} Rc8 {[%emt 0:01:58]} 26. Be5 {[%emt 0:02:18]} f6 {[%emt 0:00:46]} 27. Bb2 {[%emt 0:06:11]} e5 {[%emt 0:00:23]} 28. g4 {[%emt 0:02:15]} Be6 {[%emt 0:01:09]} 29. h3 $11 {[%emt 0:01:18]} Kf7 {[%emt 0:00:32]} 30. Ba3 {[%emt 0:01:35]} g6 {[%emt 0:03:04]} 31. Rc3 {[%emt 0:03:41]} f5 {[%emt 0:01:20]} 32. Bc1 {[%emt 0:01:20]} e4 {[%emt 0:04:14]} 33. Bd1 {[%emt 0:01:53]} cxb5 {[%emt 0:02:15]} 34. cxb5 {[%emt 0:00:06]} Bxa2 {[%emt 0:00:07]} 35. gxf5 {[%emt 0:00:48]} gxf5 {[%emt 0:00:28]} 36. Bxa4 {[%emt 0:00:15]} h5 {[%emt 0:04:51]} 37. Bf4 {[%emt 0:01:22]} Ke7 {[%emt 0:01:34]} 38. c6 {[%emt 0:04:45]} b6 {[%emt 0:00:13]} 39. Be3 {[%emt 0:00:15]} Nc7 {[%emt 0:00:23]} 40. Bxb6 {[%emt 0:00:08]} Nd5 {[%emt 0:01:27]} 41. Bc5+ {[%emt 0:50:07]} Kd8 {[%emt 0:51:18]} 42. Rg3 {[%emt 0:00:29]} Nf4 {[%emt 0:01:29]} 43. Kh2 {[%emt 0:00:44]} Nd3 {[%emt 0:00:46]} 44. Bd6 {[%emt 0:00:48]} f4 {[%emt 0:00:42]} 45. Rg7 {[%emt 0:00:08]} Ra8 {[%emt 0:00:48]} 46. b6 {[%emt 0:00:30]} 1-0

[Event "94th Tradewise Hastings Congress"]
[Site "Hastings"]
[Date "2019.01.06"]
[Round "10"]
[White "Payne, Matthew J"]
[Black "Rolvag, Mikael"]
[Result "0-1"]
[ECO "B12"]
[WhiteElo "2182"]
[BlackElo "2107"]
[Annotator "NA"]
[PlyCount "82"]
[EventDate "2018.12.28"]
[EventType "swiss"]
[EventCountry "ENG"]
[SourceTitle "playchess.com"]
[Source "ChessBase"]
[SourceQuality "1"]
[TimeControl "40/6000+30:3000+30"]

1. e4 {[%emt 0:00:00]} c6 {[%emt 0:00:00]} 2. d4 {[%emt 0:00:00]} d5 {[%emt 0:00:00]} 3. e5 {[%emt 0:00:23]} Bf5 {[%emt 0:00:00]} 4. h4 {[%emt 0:00:05]} h6 {[%emt 0:02:51]} 5. g4 {[%emt 0:04:17]} Bd7 {[%emt 0:02:13]} 6. c4 {[%emt 0:06:58]} h5 {[%emt 0:08:02]} 7. gxh5 {[%emt 0:11:37]} Bf5 {[%emt 0:00:49]} 8. Nc3 {[%emt 0:05:14]} e6 {[%emt 0:03:33]} 9. cxd5 {[%emt 0:24:51]} cxd5 $11 {[%emt 0:01:20]} 10. Qb3 {[%emt 0:00:25]} Qd7 {[%emt 0:03:35]} 11. Bb5 {[%emt 0:03:56]} Nc6 {[%emt 0:00:07]} 12. Nge2 {[%emt 0:01:54]} a6 {[%emt 0:14:40]} 13. Bxc6 {[%emt 0:00:17]} Qxc6 {[%emt 0:00:01]} 14. Bg5 {[%emt 0:00:41]} b5 {[%emt 0:09:04]} 15. Rc1 {[%emt 0:05:54]} Qc4 {[%emt 0:08:19]} 16. Qd1 {[%emt 0:00:15]} Qd3 {[%emt 0:00:04]} 17. Qxd3 {[%emt 0:05:41]} Bxd3 {[%emt 0:02:10]} 18. Ng3 {[%emt 0:00:14]} Nh6 {[%emt 0:00:28]} 19. Kd2 {[%emt 0:01:12]} Bh7 {[%emt 0:00:08]} 20. Rhg1 {[%emt 0:05:55]} Kd7 {[%emt 0:00:38]} 21. f4 {[%emt 0:03:02]} Bb4 {[%emt 0:09:25]} 22. a3 {[%emt 0:05:34]} Ba5 {[%emt 0:01:22]} 23. b4 {[%emt 0:01:00]} Bb6 {[%emt 0:00:01]} 24. Bxh6 {[%emt 0:03:20]} gxh6 {[%emt 0:00:48]} 25. Nge2 {[%emt 0:00:04]} Rhg8 {[%emt 0:06:09]} 26. a4 {[%emt 0:00:17]} Bf5 {[%emt 0:10:53]} 27. axb5 {[%emt 0:01:56]} axb5 {[%emt 0:00:28]} 28. Nxb5 {[%emt 0:00:09]} Bg4 {[%emt 0:03:17]} 29. Ng3 {[%emt 0:01:08]} Ra2+ {[%emt 0:02:30]} 30. Ke3 {[%emt 0:00:59]} Rga8 {[%emt 0:01:08]} 31. Rc3 {[%emt 0:03:17]} Rb2 {[%emt 0:00:25]} 32. Ra3 {[%emt 0:07:36]} Rxa3+ {[%emt 0:00:19]} 33. Nxa3 {[%emt 0:00:20]} Rb3+ {[%emt 0:00:13]} 34. Kd2 {[%emt 0:00:03]} Rxa3 {[%emt 0:00:14]} 35. Ne4 {[%emt 0:00:18]} dxe4 {[%emt 0:00:00]} 36. Rxg4 {[%emt 0:00:00]} Bxd4 {[%emt 0:00:14]} 37. Kc2 {[%emt 0:00:43]} Rc3+ {[%emt 0:00:20]} 38. Kd2 {[%emt 0:00:04]} e3+ {[%emt 0:00:09]} 39. Ke2 {[%emt 0:00:03]} Rc2+ {[%emt 0:00:19]} 40. Kd3 {[%emt 0:00:15]} Rd2+ {[%emt 0:00:07]} 41. Kc4 {[%emt 0:50:04]} e2 0-1